[Event "-chT Youth Countries 2019"]
[Site "Wuerzburg"]
[Date "2019.10.03"]
[Round "3.1"]
[White "Polster, Christian"]
[Black "Lagunow, Raphael"]
[Result "1/2-1/2"]
[ECO "D02"]
[WhiteElo "2279"]
[BlackElo "2438"]
[Annotator "ChessBase"]
[PlyCount "52"]
[EventDate "2019.10.02"]
[EventType "team-tourn"]
[EventRounds "7"]
[EventCountry "GER"]
[SourceTitle "playchess.com"]
[Source "ChessBase"]
[SourceQuality "1"]
[WhiteTeam "Niedersachsen"]
[BlackTeam "Berlin"]
[TimeControl "40/5400+30:1800+30"]

1. d4 {[%emt 0:00:00]} d5 {[%emt 0:00:00]} 2. Nf3 {[%emt 0:00:24]} Nf6 {[%emt 0:00:00]} 3. Bf4 {[%emt 0:00:34]} c5 {[%emt 0:00:21]} 4. e3 {[%emt 0:00:40]} Nc6 {[%emt 0:00:18]} 5. Nbd2 {[%emt 0:00:41]} e6 {[%emt 0:07:00]} 6. c3 {[%emt 0:00:42]} cxd4 {[%emt 0:00:09]} 7. exd4 {[%emt 0:00:09]} Nh5 {[%emt 0:00:05]} 8. Be3 {[%emt 0:04:17]} Bd6 {[%emt 0:00:37]} 9. Ne5 {[%emt 0:06:08]} g6 {[%emt 0:00:08]} 10. Nd3 {[%emt 0:05:43]} Ng7 {[%emt 0:04:02]} 11. Bf4 {[%emt 0:05:39]} f6 {[%emt 0:03:57]} 12. Bxd6 {[%emt 0:10:31]} Qxd6 {[%emt 0:00:08]} 13. f4 {[%emt 0:00:18]} O-O {[%emt 0:02:09]} 14. Nf3 {[%emt 0:01:42]} b6 {[%emt 0:03:57]} 15. Qd2 {[%emt 0:04:07]} Ba6 {[%emt 0:09:52]} 16. O-O-O {[%emt 0:02:19]} Na5 {[%emt 0:01:54]} 17. b3 {[%emt 0:01:12]} Nf5 {[%emt 0:10:21]} 18. g4 {[%emt 0:04:43]} Qa3+ {[%emt 0:03:57]} 19. Kb1 {[%emt 0:01:26]} Nd6 {[%emt 0:04:00]} 20. Qb2 {[%emt 0:09:28]} Qxb2+ {[%emt 0:01:42]} 21. Kxb2 {[%emt 0:03:51]} Ne4 {[%emt 0:08:22]} 22. Nb4 {[%emt 0:03:02]} Bxf1 {[%emt 0:01:37]} 23. Rhxf1 {[%emt 0:01:27]} Rac8 {[%emt 0:00:16]} 24. Rd3 {[%emt 0:02:39]} Nb7 {[%emt 0:09:47]} 25. Na6 {[%emt 0:04:26]} Nbd6 {[%emt 0:00:19]} 26. Nd2 {[%emt 0:07:38]} Nxd2 {[%emt 0:14:11] normal} 1/2-1/2

[Event "-chT Youth Countries 2019"]
[Site "Wuerzburg"]
[Date "2019.10.03"]
[Round "3.1"]
[White "Weihrauch, Jakob"]
[Black "Vuckovic, Zarko"]
[Result "0-1"]
[ECO "B33"]
[WhiteElo "2167"]
[BlackElo "2253"]
[Annotator "NA"]
[PlyCount "32"]
[EventDate "2019.10.02"]
[EventType "team-tourn"]
[EventRounds "7"]
[EventCountry "GER"]
[SourceTitle "playchess.com"]
[Source "ChessBase"]
[SourceQuality "1"]
[WhiteTeam "Hamburg/Schleswig-Holstein"]
[BlackTeam "Bayern 1"]
[TimeControl "40/5400+30:1800+30"]

1. e4 {[%emt 0:00:00]} c5 {[%emt 0:00:00]} 2. Nf3 {[%emt 0:00:00]} Nc6 {[%emt 0:00:00]} 3. d4 {[%emt 0:00:00]} cxd4 {[%emt 0:00:00]} 4. Nxd4 {[%emt 0:00:00]} Nf6 {[%emt 0:00:00]} 5. Nc3 {[%emt 0:00:03]} e6 {[%emt 0:00:00]} 6. Ndb5 {[%emt 0:00:08]} Bc5 {[%emt 0:00:00]} 7. Bf4 {[%emt 0:02:19]} O-O {[%emt 0:00:18]} 8. e5 {[%emt 0:03:08]} a6 {[%emt 0:07:30]} 9. exf6 {[%emt 0:02:44]} Qxf6 {[%emt 0:01:58]} 10. Bg3 {[%emt 0:06:22]} axb5 {[%emt 0:00:35]} 11. Ne4 {[%emt 0:03:25]} Qxb2 {[%emt 0:04:38]} 12. Nxc5 {[%emt 0:03:07]} Qc3+ {[%emt 0:00:53]} 13. Qd2 {[%emt 0:01:44]} Qxa1+ {[%emt 0:00:18]} 14. Ke2 {[%emt 0:00:03]} Rxa2 {[%emt 0:02:44]} 15. Ke3 {[%emt 0:01:43]} Qb1 {[%emt 0:08:30]} 16. Bc4 {[%emt 0:02:05]} Ra3+ {[%emt 0:00:05] normal} 0-1

[Event "-chT Youth Countries 2019"]
[Site "Wuerzburg"]
[Date "2019.10.03"]
[Round "3.2"]
[White "Koelle, Tobias"]
[Black "Riehle, Marco"]
[Result "1/2-1/2"]
[ECO "D32"]
[WhiteElo "2281"]
[BlackElo "2309"]
[Annotator "NA"]
[PlyCount "81"]
[EventDate "2019.10.02"]
[EventType "team-tourn"]
[EventRounds "7"]
[EventCountry "GER"]
[SourceTitle "playchess.com"]
[Source "ChessBase"]
[SourceQuality "1"]
[WhiteTeam "Württemberg"]
[BlackTeam "Baden 2"]
[TimeControl "40/5400+30:1800+30"]

1. d4 {[%emt 0:00:00]} d5 {[%emt 0:00:00]} 2. c4 {[%emt 0:00:00]} e6 {[%emt 0:00:14]} 3. Nc3 {[%emt 0:00:00]} c5 {[%emt 0:00:05]} 4. cxd5 {[%emt 0:00:37]} cxd4 {[%emt 0:00:24]} 5. Qa4+ {[%emt 0:00:08]} Bd7 {[%emt 0:00:16]} 6. Qxd4 {[%emt 0:00:07]} exd5 {[%emt 0:00:14]} 7. Qxd5 {[%emt 0:00:53]} Nf6 {[%emt 0:00:08]} 8. Qd1 {[%emt 0:00:06]} Nc6 {[%emt 0:01:00]} 9. e3 {[%emt 0:08:06]} Bc5 {[%emt 0:00:18]} 10. Nf3 {[%emt 0:00:43]} Qe7 {[%emt 0:01:38]} 11. Bb5 {[%emt 0:01:47]} O-O-O {[%emt 0:02:01]} 12. Qe2 {[%emt 0:00:34]} g5 {[%emt 0:02:33]} 13. O-O {[%emt 0:02:17]} a6 {[%emt 0:06:32]} 14. Bxc6 {[%emt 0:06:22]} Bxc6 {[%emt 0:00:11]} 15. Nd4 {[%emt 0:01:15]} Bxd4 {[%emt 0:10:06]} 16. exd4 {[%emt 0:00:02]} Qxe2 {[%emt 0:00:16]} 17. Nxe2 {[%emt 0:00:02]} h6 {[%emt 0:02:25]} 18. Be3 {[%emt 0:01:11]} Rhe8 {[%emt 0:01:55]} 19. Ng3 {[%emt 0:02:20]} Be4 {[%emt 0:06:10]} 20. Rfe1 {[%emt 0:02:57]} Bg6 {[%emt 0:02:01]} 21. f3 {[%emt 0:07:54]} Nd5 {[%emt 0:03:28]} 22. Bd2 {[%emt 0:02:53]} f5 {[%emt 0:00:43]} 23. Rxe8 {[%emt 0:04:26]} Rxe8 {[%emt 0:00:05]} 24. Re1 {[%emt 0:00:31]} Rxe1+ {[%emt 0:00:45]} 25. Bxe1 {[%emt 0:00:06]} Kd7 {[%emt 0:00:30]} 26. Ne2 {[%emt 0:01:19]} Bf7 {[%emt 0:01:37]} 27. a3 {[%emt 0:00:16]} Kc6 {[%emt 0:00:13]} 28. Nc3 {[%emt 0:02:45]} Ne3 {[%emt 0:02:56]} 29. Bd2 {[%emt 0:04:45]} Nc2 {[%emt 0:00:49]} 30. h4 {[%emt 0:00:50]} gxh4 {[%emt 0:01:50]} 31. Bxh6 {[%emt 0:00:16]} Nxd4 {[%emt 0:00:08]} 32. Be3 {[%emt 0:01:25]} Ne6 {[%emt 0:02:11]} 33. Kh2 {[%emt 0:01:45]} Nc5 {[%emt 0:03:16]} 34. Kh3 {[%emt 0:04:02]} Nd3 {[%emt 0:02:02]} 35. b4 {[%emt 0:00:27]} Ne1 {[%emt 0:01:31]} 36. Bd2 {[%emt 0:01:28]} Nc2 {[%emt 0:00:14]} 37. Bc1 {[%emt 0:00:12]} Ne1 {[%emt 0:00:23]} 38. Kxh4 {[%emt 0:07:23]} Nxg2+ {[%emt 0:00:11]} 39. Kg5 {[%emt 0:00:14]} Ne1 {[%emt 0:01:25]} 40. Kxf5 {[%emt 0:01:01]} Nxf3 {[%emt 0:00:06]} 41. Ke4 {normal} 1/2-1/2

[Event "-chT Youth Countries 2019"]
[Site "Wuerzburg"]
[Date "2019.10.03"]
[Round "3.2"]
[White "Schmider, Niklas"]
[Black "Koehler, Lukas"]
[Result "1/2-1/2"]
[ECO "C42"]
[WhiteElo "2261"]
[BlackElo "2040"]
[Annotator "NA"]
[PlyCount "151"]
[EventDate "2019.10.02"]
[EventType "team-tourn"]
[EventRounds "7"]
[EventCountry "GER"]
[SourceTitle "playchess.com"]
[Source "ChessBase"]
[SourceQuality "1"]
[WhiteTeam "Baden 1"]
[BlackTeam "Bayern 2"]
[TimeControl "40/5400+30:1800+30"]

1. e4 {[%emt 0:00:00]} e5 {[%emt 0:00:00]} 2. Nf3 {[%emt 0:00:00]} Nf6 {[%emt 0:00:00]} 3. Nxe5 {[%emt 0:00:00]} d6 {[%emt 0:00:00]} 4. Nf3 {[%emt 0:00:00]} Nxe4 {[%emt 0:00:04]} 5. c4 {[%emt 0:00:07]} Be7 {[%emt 0:10:21]} 6. d4 {[%emt 0:02:14]} O-O {[%emt 0:02:19]} 7. Bd3 {[%emt 0:08:44]} Nf6 {[%emt 0:05:08]} 8. d5 {[%emt 0:13:58]} Na6 {[%emt 0:10:26]} 9. O-O {[%emt 0:02:45]} Bg4 {[%emt 0:02:58]} 10. Nc3 {[%emt 0:07:45]} Nc5 {[%emt 0:05:03]} 11. Be2 {[%emt 0:00:48]} a5 {[%emt 0:03:08]} 12. Be3 {[%emt 0:01:14]} Nfd7 {[%emt 0:01:44]} 13. Rc1 {[%emt 0:05:17]} Re8 {[%emt 0:02:30]} 14. b3 {[%emt 0:06:13]} Bf6 {[%emt 0:03:19]} 15. Re1 {[%emt 0:09:09]} h6 {[%emt 0:19:15]} 16. Qd2 {[%emt 0:13:13]} Ne4 {[%emt 0:07:03]} 17. Nxe4 {[%emt 0:04:47]} Rxe4 {[%emt 0:00:21]} 18. Qc2 {[%emt 0:00:20]} Re8 {[%emt 0:03:34]} 19. Nd4 {[%emt 0:02:10]} Bxe2 {[%emt 0:06:41]} 20. Rxe2 {[%emt 0:00:06]} Bxd4 {[%emt 0:09:07]} 21. Bxd4 {[%emt 0:00:10]} Rxe2 {[%emt 0:00:25]} 22. Qxe2 {[%emt 0:00:06]} Qg5 {[%emt 0:00:15]} 23. Re1 {[%emt 0:04:30]} b6 {[%emt 0:02:00]} 24. h3 {[%emt 0:03:36]} Nf6 {[%emt 0:04:08]} 25. Qf3 {[%emt 0:05:52]} Re8 {[%emt 0:00:58]} 26. Rxe8+ {[%emt 0:00:41]} Nxe8 {[%emt 0:00:01]} 27. g3 {[%emt 0:00:09]} Qg6 {[%emt 0:01:10]} 28. Kg2 {[%emt 0:02:34]} Kf8 {[%emt 0:00:10]} 29. h4 {[%emt 0:01:41]} Qb1 {[%emt 0:01:03]} 30. Qe2 {[%emt 0:02:38]} Qf5 {[%emt 0:00:08]} 31. Qb2 {[%emt 0:00:54]} Qe4+ {[%emt 0:00:32]} 32. f3 {[%emt 0:00:25]} Qf5 {[%emt 0:00:47]} 33. a3 {[%emt 0:00:18]} Qd3 {[%emt 0:00:37]} 34. Kf2 {[%emt 0:01:01]} a4 {[%emt 0:00:33]} 35. Qc3 {[%emt 0:01:48]} Qxc3 {[%emt 0:00:23]} 36. Bxc3 {[%emt 0:00:04]} axb3 {[%emt 0:00:04]} 37. Ke2 {[%emt 0:00:26]} Ke7 {[%emt 0:00:51]} 38. Kd2 {[%emt 0:00:56]} Nf6 {[%emt 0:01:18]} 39. Bd4 {[%emt 0:01:15]} h5 {[%emt 0:00:31]} 40. Kc3 {[%emt 0:00:29]} Ne8 {[%emt 0:00:31]} 41. Kxb3 {[%emt 0:05:14]} Kd7 {[%emt 0:01:31]} 42. Ka4 {[%emt 0:09:09]} c5 {[%emt 0:03:16]} 43. Bc3 {[%emt 0:00:11]} Kc7 {[%emt 0:00:34]} 44. Kb3 {[%emt 0:03:10]} Kd7 {[%emt 0:01:16]} 45. a4 {[%emt 0:01:28]} g6 {[%emt 0:01:53]} 46. a5 {[%emt 0:03:17]} bxa5 {[%emt 0:00:35]} 47. Ka4 {[%emt 0:00:08]} Kc8 {[%emt 0:01:41]} 48. Kxa5 {[%emt 0:01:23]} Kb7 {[%emt 0:00:28]} 49. Ka4 {[%emt 0:02:40]} Kc8 {[%emt 0:00:56]} 50. Kb3 {[%emt 0:01:06]} Kd7 {[%emt 0:00:13]} 51. Kc2 {[%emt 0:01:04]} Ke7 {[%emt 0:01:02]} 52. Kd3 {[%emt 0:00:23]} f6 {[%emt 0:04:22]} 53. Ke4 {[%emt 0:02:21]} Kf7 {[%emt 0:00:56]} 54. g4 {[%emt 0:01:55]} Ng7 {[%emt 0:00:59]} 55. Kf4 {[%emt 0:00:56]} Ne8 {[%emt 0:04:15]} 56. Ba5 {[%emt 0:03:12]} Ke7 {[%emt 0:02:05]} 57. Bb6 {[%emt 0:01:09]} Ng7 {[%emt 0:01:34]} 58. Ba5 {[%emt 0:00:18]} Ne8 {[%emt 0:00:28]} 59. Bd2 {[%emt 0:01:25]} Ng7 {[%emt 0:00:54]} 60. Kg3 {[%emt 0:00:07]} Kf7 {[%emt 0:00:40]} 61. Bf4 {[%emt 0:00:31]} Ke7 {[%emt 0:00:45]} 62. Bh6 {[%emt 0:00:08]} Ne8 {[%emt 0:01:12]} 63. Kf4 {[%emt 0:00:37]} Kf7 {[%emt 0:01:35]} 64. Ke4 {[%emt 0:00:26]} Ke7 {[%emt 0:01:35]} 65. Kf4 {[%emt 0:01:02]} Kf7 {[%emt 0:00:05]} 66. Kg3 {[%emt 0:00:22]} Ke7 {[%emt 0:00:40]} 67. Bc1 {[%emt 0:00:16]} Kf7 {[%emt 0:00:32]} 68. Bb2 {[%emt 0:00:29]} Ng7 {[%emt 0:01:07]} 69. Kf2 {[%emt 0:00:24]} Ne8 {[%emt 0:00:15]} 70. Ke3 {[%emt 0:00:13]} Ke7 {[%emt 0:00:36]} 71. Kd3 {[%emt 0:00:34]} Nc7 {[%emt 0:01:40]} 72. Ke4 {[%emt 0:00:44]} Ne8 {[%emt 0:00:33]} 73. Bc3 {[%emt 0:00:07]} Kf7 {[%emt 0:00:31]} 74. Kd3 {[%emt 0:00:47]} Ke7 {[%emt 0:00:25]} 75. Bd2 {[%emt 0:00:47]} Kd7 {[%emt 0:01:12]} 76. Bh6 {[%emt 0:00:43] normal} 1/2-1/2

[Event "-chT Youth Countries 2019"]
[Site "Wuerzburg"]
[Date "2019.10.03"]
[Round "3.2"]
[White "Sieber, Fiona"]
[Black "Niermann, Tristan"]
[Result "1/2-1/2"]
[ECO "C77"]
[WhiteElo "2252"]
[BlackElo "2227"]
[Annotator "NA"]
[PlyCount "40"]
[EventDate "2019.10.02"]
[EventType "team-tourn"]
[EventRounds "7"]
[EventCountry "GER"]
[SourceTitle "playchess.com"]
[Source "ChessBase"]
[SourceQuality "1"]
[WhiteTeam "Sachsen-Anhalt"]
[BlackTeam "Nordrhein-Westfalen"]
[TimeControl "40/5400+30:1800+30"]

1. e4 {[%emt 0:00:00]} e5 {[%emt 0:00:00]} 2. Nf3 {[%emt 0:00:00]} Nc6 {[%emt 0:00:00]} 3. Bb5 {[%emt 0:00:00]} a6 {[%emt 0:00:00]} 4. Ba4 {[%emt 0:00:00]} Nf6 {[%emt 0:00:00]} 5. Qe2 {[%emt 0:00:00]} b5 {[%emt 0:04:25]} 6. Bb3 {[%emt 0:00:00]} Bc5 {[%emt 0:00:34]} 7. O-O {[%emt 0:04:26]} O-O {[%emt 0:01:12]} 8. c3 {[%emt 0:00:51]} d5 {[%emt 0:08:45]} 9. d3 {[%emt 0:00:55]} h6 {[%emt 0:07:12]} 10. Nbd2 {[%emt 0:07:42]} Re8 {[%emt 0:08:40]} 11. Re1 {[%emt 0:03:39]} Be6 {[%emt 0:13:10]} 12. h3 {[%emt 0:02:48]} Qd7 {[%emt 0:04:15]} 13. Nf1 {[%emt 0:04:14]} Rad8 {[%emt 0:09:19]} 14. Ng3 {[%emt 0:08:00]} Bb6 {[%emt 0:10:16]} 15. Nh4 {[%emt 0:07:22]} Bxh3 {[%emt 0:04:03]} 16. exd5 {[%emt 0:14:24]} Na5 {[%emt 0:00:40]} 17. gxh3 {[%emt 0:11:51]} Qxh3 {[%emt 0:00:13]} 18. Nhf5 {[%emt 0:01:58]} Ng4 {[%emt 0:00:25]} 19. Be3 {[%emt 0:06:49]} Qh2+ {[%emt 0:00:42]} 20. Kf1 {[%emt 0:00:01]} Qh3+ {[%emt 0:00:54] normal} 1/2-1/2

[Event "-chT Youth Countries 2019"]
[Site "Wuerzburg"]
[Date "2019.10.03"]
[Round "3.2"]
[White "Schneider, Jana"]
[Black "Holinka, Henning"]
[Result "1-0"]
[ECO "B06"]
[WhiteElo "2240"]
[BlackElo "2101"]
[Annotator "ChessBase"]
[PlyCount "75"]
[EventDate "2019.10.02"]
[EventType "team-tourn"]
[EventRounds "7"]
[EventCountry "GER"]
[SourceTitle "playchess.com"]
[Source "ChessBase"]
[SourceQuality "1"]
[WhiteTeam "Bayern 1"]
[BlackTeam "Hamburg/Schleswig-Holstein"]
[TimeControl "40/5400+30:1800+30"]

1. e4 {[%emt 0:00:00]} g6 {[%emt 0:00:00]} 2. d4 {[%emt 0:00:00]} Bg7 {[%emt 0:00:00]} 3. Nc3 {[%emt 0:00:00]} d6 {[%emt 0:00:00]} 4. Be3 {[%emt 0:00:00]} a6 {[%emt 0:00:00]} 5. Qd2 {[%emt 0:00:06]} b5 {[%emt 0:00:20]} 6. h4 {[%emt 0:00:14]} Nf6 {[%emt 0:03:39]} 7. f3 {[%emt 0:00:30]} h5 {[%emt 0:13:01]} 8. O-O-O {[%emt 0:01:03]} c6 {[%emt 0:04:07]} 9. Nh3 {[%emt 0:18:41]} Bxh3 {[%emt 0:05:04]} 10. Rxh3 {[%emt 0:00:09]} Nbd7 {[%emt 0:03:32]} 11. Kb1 {[%emt 0:06:59]} Nb6 {[%emt 0:04:01]} 12. Bd3 {[%emt 0:03:05]} Qc7 {[%emt 0:03:26]} 13. f4 {[%emt 0:05:42]} Ng4 {[%emt 0:07:08]} 14. e5 {[%emt 0:00:30]} b4 {[%emt 0:01:54]} 15. Ne4 {[%emt 0:02:42]} Nd5 {[%emt 0:00:35]} 16. Bg1 {[%emt 0:04:26]} Bh6 {[%emt 0:06:51]} 17. Ng5 {[%emt 0:01:37]} e6 {[%emt 0:03:04]} 18. Rf3 {[%emt 0:07:18]} Rb8 {[%emt 0:04:23]} 19. Ka1 {[%emt 0:02:49]} O-O {[%emt 0:03:57]} 20. Be4 {[%emt 0:03:14]} Nb6 {[%emt 0:03:52]} 21. Qd3 {[%emt 0:02:39]} Bxg5 {[%emt 0:07:43]} 22. hxg5 {[%emt 0:00:13]} Kg7 {[%emt 0:01:36]} 23. Rg3 {[%emt 0:05:00]} d5 {[%emt 0:02:49]} 24. Bf3 {[%emt 0:00:28]} a5 {[%emt 0:01:43]} 25. Bxg4 {[%emt 0:01:10]} hxg4 {[%emt 0:00:14]} 26. Rxg4 {[%emt 0:00:23]} a4 {[%emt 0:01:14]} 27. Rh4 {[%emt 0:02:33]} b3 {[%emt 0:03:04]} 28. cxb3 {[%emt 0:00:24]} axb3 {[%emt 0:00:23]} 29. axb3 {[%emt 0:04:15]} Ra8+ {[%emt 0:05:25]} 30. Kb1 {[%emt 0:00:08]} Qa7 {[%emt 0:04:30]} 31. Bf2 {[%emt 0:01:11]} Qa2+ {[%emt 0:01:40]} 32. Kc2 {[%emt 0:00:04]} Rfb8 {[%emt 0:00:47]} 33. Rh7+ {[%emt 0:08:03]} Kf8 {[%emt 0:04:26]} 34. Qc3 {[%emt 0:00:40]} Nc4 {[%emt 0:00:46]} 35. bxc4 {[%emt 0:02:18]} dxc4 {[%emt 0:00:08]} 36. Rh8+ {[%emt 0:00:31]} Kg7 {[%emt 0:00:28]} 37. Rxb8 {[%emt 0:00:05]} Rxb8 {[%emt 0:00:06]} 38. Qa3 {[%emt 0:00:20] normal} 1-0

[Event "-chT Youth Countries 2019"]
[Site "Wuerzburg"]
[Date "2019.10.03"]
[Round "3.2"]
[White "Lange, Jannis"]
[Black "Karsay, Pascal"]
[Result "0-1"]
[ECO "C78"]
[WhiteElo "2080"]
[BlackElo "2276"]
[Annotator "ChessBase"]
[PlyCount "62"]
[EventDate "2019.10.02"]
[EventType "team-tourn"]
[EventRounds "7"]
[EventCountry "GER"]
[SourceTitle "playchess.com"]
[Source "ChessBase"]
[SourceQuality "1"]
[WhiteTeam "Mecklenburg-Vorpommern"]
[BlackTeam "Rheinland-Pfalz"]
[TimeControl "40/5400+30:1800+30"]

1. e4 {[%emt 0:00:00]} e5 {[%emt 0:00:00]} 2. Nf3 {[%emt 0:00:00]} Nc6 {[%emt 0:00:00]} 3. Bb5 {[%emt 0:00:00]} a6 {[%emt 0:00:00]} 4. Ba4 {[%emt 0:00:00]} Nf6 {[%emt 0:00:00]} 5. O-O {[%emt 0:00:03]} b5 {[%emt 0:00:07]} 6. Bb3 {[%emt 0:00:07]} Bc5 {[%emt 0:00:06]} 7. c3 {[%emt 0:02:10]} d6 {[%emt 0:00:11]} 8. d3 {[%emt 0:01:08]} h6 {[%emt 0:00:31]} 9. h3 {[%emt 0:00:52]} O-O {[%emt 0:00:11]} 10. Re1 {[%emt 0:02:11]} Re8 {[%emt 0:01:21]} 11. Nbd2 {[%emt 0:01:58]} Bb6 {[%emt 0:05:10]} 12. Nf1 {[%emt 0:01:43]} Ne7 {[%emt 0:00:07]} 13. d4 {[%emt 0:26:56]} Ng6 {[%emt 0:00:21]} 14. Ng3 {[%emt 0:09:47]} Bb7 {[%emt 0:13:47]} 15. d5 {[%emt 0:02:23]} c6 {[%emt 0:00:16]} 16. dxc6 {[%emt 0:05:04]} Bxc6 {[%emt 0:00:07]} 17. Be3 {[%emt 0:00:35]} Bc7 {[%emt 0:06:02]} 18. Qc2 {[%emt 0:03:48]} Qb8 {[%emt 0:08:26]} 19. c4 {[%emt 0:09:06]} Qb7 {[%emt 0:10:44]} 20. Bd2 {[%emt 0:08:23]} Rac8 {[%emt 0:02:00]} 21. Rac1 {[%emt 0:02:32]} Bb8 {[%emt 0:02:08]} 22. Qb1 {[%emt 0:01:45]} Nf4 {[%emt 0:14:03]} 23. cxb5 {[%emt 0:03:34]} axb5 {[%emt 0:00:22]} 24. Bb4 {[%emt 0:03:28]} d5 {[%emt 0:03:00]} 25. exd5 {[%emt 0:03:21]} N6xd5 {[%emt 0:00:59]} 26. Bxd5 {[%emt 0:03:39]} Bxd5 {[%emt 0:02:56]} 27. Rxc8 {[%emt 0:00:19]} Rxc8 {[%emt 0:01:47]} 28. Nxe5 {[%emt 0:06:05]} Bxg2 {[%emt 0:04:03]} 29. Qf5 {[%emt 0:01:25]} Nxh3+ {[%emt 0:02:36]} 30. Kh2 {[%emt 0:00:10]} Ng5 {[%emt 0:00:24]} 31. Rd1 {[%emt 0:01:22]} Bxe5 {[%emt 0:00:38] normal} 0-1

[Event "-chT Youth Countries 2019"]
[Site "Wuerzburg"]
[Date "2019.10.03"]
[Round "3.3"]
[White "Weber, Samuel"]
[Black "Grund, Sebastian"]
[Result "1-0"]
[ECO "B30"]
[WhiteElo "2288"]
[BlackElo "2054"]
[Annotator "NA"]
[PlyCount "115"]
[EventDate "2019.10.02"]
[EventType "team-tourn"]
[EventRounds "7"]
[EventCountry "GER"]
[SourceTitle "playchess.com"]
[Source "ChessBase"]
[SourceQuality "1"]
[WhiteTeam "Hessen"]
[BlackTeam "Thüringen"]
[TimeControl "40/5400+30:1800+30"]

1. e4 {[%emt 0:00:00]} c5 {[%emt 0:00:00]} 2. Nf3 {[%emt 0:00:00]} Nc6 {[%emt 0:00:00]} 3. g3 {[%emt 0:00:16]} g6 {[%emt 0:00:02]} 4. Bg2 {[%emt 0:00:09]} Bg7 {[%emt 0:00:12]} 5. O-O {[%emt 0:00:10]} d6 {[%emt 0:00:08]} 6. d3 {[%emt 0:00:12]} e5 {[%emt 0:00:50]} 7. Nc3 {[%emt 0:00:06]} Nge7 {[%emt 0:03:28]} 8. Nd2 {[%emt 0:00:05]} O-O {[%emt 0:01:17]} 9. Nc4 {[%emt 0:00:23]} a6 {[%emt 0:01:10]} 10. a4 {[%emt 0:00:07]} Be6 {[%emt 0:00:08]} 11. Nd5 {[%emt 0:02:17]} Bxd5 {[%emt 0:15:59]} 12. exd5 {[%emt 0:00:22]} Na5 {[%emt 0:00:13]} 13. Ne3 {[%emt 0:16:16]} b5 {[%emt 0:07:06]} 14. Bd2 {[%emt 0:03:47]} Nb7 {[%emt 0:01:34]} 15. a5 {[%emt 0:00:59]} f5 {[%emt 0:10:50]} 16. Qe2 {[%emt 0:31:22]} f4 {[%emt 0:17:09]} 17. gxf4 {[%emt 0:00:48]} exf4 {[%emt 0:00:30]} 18. Nd1 {[%emt 0:00:05]} Nf5 {[%emt 0:01:06]} 19. c3 {[%emt 0:02:05]} Qh4 {[%emt 0:16:34]} 20. Qf3 {[%emt 0:02:07]} Be5 {[%emt 0:01:26]} 21. Qh3 Qe7 22. Re1 {[%emt 0:09:55]} Qg7 {[%emt 0:10:33]} 23. Be4 {[%emt 0:04:17]} Rae8 {[%emt 0:05:00]} 24. Kh1 {[%emt 0:02:32]} Nd8 {[%emt 0:01:41]} 25. f3 {[%emt 0:01:55]} Nh6 {[%emt 0:03:00]} 26. Nf2 {[%emt 0:00:23]} Ndf7 {[%emt 0:00:17]} 27. Rg1 {[%emt 0:01:06]} Qf6 {[%emt 0:00:41]} 28. Qh5 {[%emt 0:02:45]} Kh8 {[%emt 0:01:12]} 29. Qh3 {[%emt 0:08:42]} Rg8 {[%emt 0:00:47]} 30. Rg2 {[%emt 0:01:04]} Rg7 {[%emt 0:01:05]} 31. Rag1 {[%emt 0:00:39]} Reg8 {[%emt 0:00:27]} 32. Be1 {[%emt 0:08:18]} Nf5 {[%emt 0:00:54]} 33. Ng4 {[%emt 0:01:20]} Qe7 34. Bxf5 {[%emt 0:01:13]} gxf5 {[%emt 0:00:15]} 35. Nxe5 {[%emt 0:01:08]} Qxe5 {[%emt 0:00:02]} 36. Rxg7 {[%emt 0:00:27]} Rxg7 {[%emt 0:00:09]} 37. Rxg7 {[%emt 0:00:37]} Kxg7 {[%emt 0:00:06]} 38. Qg2+ {[%emt 0:00:12]} Kf8 {[%emt 0:01:06]} 39. Bh4 {[%emt 0:00:06]} Qe3 {[%emt 0:01:40]} 40. Bf6 {[%emt 0:01:11]} Qe1+ {[%emt 0:00:17]} 41. Qg1 {[%emt 0:30:01]} Qxg1+ {[%emt 0:30:09]} 42. Kxg1 {[%emt 0:00:04]} Ne5 {[%emt 0:00:11]} 43. Bxe5 {[%emt 0:00:00]} dxe5 {[%emt 0:00:00]} 44. b3 {[%emt 0:00:00]} b4 {[%emt 0:00:00]} 45. c4 {[%emt 0:00:00]} h5 {[%emt 0:00:00]} 46. Kg2 {[%emt 0:00:00]} Kf7 {[%emt 0:00:00]} 47. Kh3 {[%emt 0:00:00]} Ke7 {[%emt 0:00:00]} 48. Kh4 {[%emt 0:00:00]} Kf6 {[%emt 0:00:00]} 49. d6 {[%emt 0:00:00]} Ke6 {[%emt 0:00:00]} 50. Kg5 {[%emt 0:00:00]} e4 {[%emt 0:00:00]} 51. dxe4 {[%emt 0:00:00]} fxe4 {[%emt 0:00:00]} 52. Kxf4 {[%emt 0:00:00]} exf3 {[%emt 0:00:00]} 53. Kxf3 {[%emt 0:00:00]} Kxd6 {[%emt 0:00:00]} 54. Kf4 {[%emt 0:00:00]} h4 {[%emt 0:00:00]} 55. Kf5 {[%emt 0:00:00]} Kd7 {[%emt 0:00:00]} 56. Ke5 {[%emt 0:00:00]} Kc6 {[%emt 0:00:00]} 57. Ke6 {[%emt 0:00:00]} h3 {[%emt 0:00:00]} 58. Ke5 {[%emt 0:00:00] normal} 1-0